fUST/lending_fUST_20251116
["ID","MTS","AMOUNT","RATE_DAILY","PERIOD"]
[394046801,1763227839009,-168.0,0.00024959,2]
[394046802,1763227839018,-168.0,0.00024978,2]
[394046803,1763227839029,-234.079335,0.00025033,2]
[394046804,1763227839039,-168.0,0.00025034,7]
[394046805,1763227839049,-168.0,0.00025042,2]
[394046806,1763227839061,-168.0,0.00025141,2]
[394046807,1763227839070,-336.0,0.00025148,2]
[394046808,1763227839081,-217.15233878,0.00025233,2]
[394046809,1763227839091,-316.0,0.00025266,2]
[394046810,1763227839102,-8233.36789285,0.00025278,2]
[394046811,1763227839112,-515.62232191,0.00025321,2]
[394046812,1763227839122,-1000.0,0.00025321,2]
[394046813,1763227839132,-1000.0,0.00025321,2]
[394046814,1763227839142,-500.0,0.00025321,2]
[394046815,1763227839152,-336.0,0.00025321,7]
[394046816,1763227839162,-168.0,0.00025344,2]
[394046817,1763227839172,-710.86455449,0.00025355,2]
[394046818,1763227839182,-611.0,0.00025359,2]
[394046819,1763227839192,-600.0,0.00025389,20]
[394046820,1763227839202,-336.0,0.0002539,2]
[394046821,1763227839213,-185.00000001,0.0002539,2]
[394046822,1763227839223,-1927.0,0.00025426,2]
[394046823,1763227839232,-224.0,0.00025452,2]
[394046824,1763227839241,-504.16917821,0.00025485,2]
[394046825,1763227839251,-500.0,0.00025485,2]
[394046826,1763227839260,-500.0,0.00025485,2]
[394046827,1763227839269,-500.0,0.00025485,2]
[394046828,1763227839278,-521.83530755,0.00025485,2]
[394046829,1763227839288,-509.94832385,0.00025485,2]
[394046830,1763227839297,-488.71895993,0.00025485,2]
[394046831,1763227839308,-440.69947592,0.00025485,2]
[394046832,1763227839321,-61.82703776,0.00025485,2]
[394046833,1763227839330,-168.0,0.0002551,2]
[394046834,1763227839339,-168.0,0.00025531,2]
[394046835,1763227839348,-168.0,0.00025557,2]
[394046836,1763227839357,-611.0,0.00025575,2]
[394046837,1763227839367,-224.0,0.00025647,7]
[394046838,1763227839376,-857.12014404,0.000257,2]
[394046839,1763227839386,-857.12014404,0.000257,2]
[394046840,1763227839395,-500.0,0.000257,2]
[394046841,1763227839404,-500.0,0.000257,2]
[394046842,1763227839414,-225.18697532,0.00025781,2]
[394046843,1763227839423,-500.0,0.00025837,2]
[394046844,1763227839432,-500.0,0.00025837,2]
[394046845,1763227839441,-1500.0,0.00025868,2]
[394046846,1763227839450,-500.0,0.00025974,2]
[394046847,1763227839459,-500.0,0.00025974,2]
[394046848,1763227839477,-1650.965799,0.00026,30]
[394046849,1763227839488,-500.0,0.00026,30]
[394046850,1763227839498,-151.0,0.00026,30]
[394046851,1763227839507,-1000.0,0.00026033,2]
[394046852,1763227839517,-500.0,0.00026033,2]
[394046853,1763227839651,-1000.0,0.00026033,2]
[394046854,1763227839665,-216.67295913,0.00026059,2]
[394046855,1763227839675,-867.76,0.0002606,3]
[394046856,1763227839684,-433.88,0.0002606,3]
[394046857,1763227839693,-500.0,0.00026111,2]
[394046858,1763227839703,-500.0,0.00026111,2]
[394046859,1763227839712,-500.0,0.00026137,30]
[394046860,1763227839722,-172.640935,0.00026137,30]
[394046861,1763227839731,-168.0,0.0002623,2]
[394046862,1763227839741,-500.0,0.00026248,2]
[394046863,1763227839750,-500.0,0.00026248,2]
[394046864,1763227839760,-500.0,0.00026274,30]
[394046865,1763227839769,-295.88575442,0.0002629,2]
[394046866,1763227839778,-500.0,0.000263,2]
[394046867,1763227839788,-168.0,0.00026319,7]
[394046868,1763227839797,-233.51889341,0.00026329,2]
[394046869,1763227839810,-705.45,0.00026347,2]
[394046870,1763227839819,-500.0,0.00026385,2]
[394046871,1763227839828,-500.0,0.00026411,30]
[394046872,1763227839839,-1434.02081824,0.00026416,2]
[394046873,1763227839854,-10550.48037618,0.00026447,2]
[394046874,1763227839864,-500.0,0.00026548,30]
[394046875,1763227839874,-536.74565487,0.00026581,2]
[394046876,1763227839883,-1500.0,0.00026581,2]
[394046877,1763227839894,-446.9113,0.00026676,2]
[394046878,1763227839904,-360.0,0.00026685,30]
[394046879,1763227839914,-151.0,0.000267,19]
[394046880,1763227839923,-420.0,0.00026764,2]
[394046881,1763227839933,-1000.0,0.00026848,2]
[394046882,1763227839943,-224.0,0.00026869,2]
[394046883,1763227839953,-242.15909246,0.00026877,2]
[394046884,1763227839962,-151.0,0.000269,15]
[394046885,1763227839971,-1560.43011427,0.00027128,2]
[394046886,1763227839981,-151.0,0.000272,11]
[394046888,1763227839991,-249.286758,0.00027207,2]
[394046890,1763227840000,-8233.3678928,0.00027239,2]
[394046892,1763227840010,-1000.0,0.00027396,2]
[394046893,1763227840019,-307.96669624,0.00027425,2]
[394046894,1763227840028,-510.52016342,0.00027473,5]
[394046895,1763227840037,-310.08589097,0.00027473,5]
[394046897,1763227840046,-502.12068515,0.00027473,5]
[394046899,1763227840057,-500.0,0.00027473,5]
[394046900,1763227840066,-511.60236064,0.00027473,5]
[394046901,1763227840075,-502.65793107,0.00027473,5]
[394046902,1763227840084,-506.74287562,0.00027473,5]
[394046903,1763227840093,-503.42514393,0.00027473,5]
[394046905,1763227840103,-500.0,0.00027473,5]
[394046907,1763227840112,-500.0,0.00027473,5]
[394046909,1763227840121,-14711.6839531,0.000275,2]
[394046933,1763227843683,-631.979486,0.000275,2]
[394046934,1763227843694,-1660.31799306,0.000275,2]
[394047011,1763227861649,191.33,5e-05,2]
[394047012,1763227862003,191.33,0.000125,2]
[394047021,1763228734107,-662.34373121,0.00021774,2]
[394047022,1763228734133,-62.92540692,0.00021994,2]
[394047026,1763228839130,-501.84012826,0.00021774,2]
[394047027,1763228839166,-87.07459308,0.00021994,2]
[394047028,1763228839190,-94.83552193,0.00021999,2]
[394047030,1763228949119,-405.16447807,0.00021999,2]
[394047031,1763228949140,-500.0,0.00021999,2]
[394047032,1763228949161,-150.0,0.00022449,2]
[394047033,1763228949185,-753.64099778,0.00022899,2]
[394047055,1763229032614,-283.0,0.00022899,2]
[394047056,1763229032624,-446.0,0.00022899,2]
[394047057,1763229032634,-1000.0,0.000229,2]
[394047058,1763229032643,-1000.0,0.000229,2]
[394047059,1763229032653,-1000.0,0.000229,2]
[394047060,1763229032663,-1000.0,0.000229,2]
[394047061,1763229032672,-1000.0,0.000229,2]
[394047062,1763229032682,-234.0793356,0.00023001,2]
[394047063,1763229032691,-344.25152266,0.0002399,2]
[394047095,1763229038522,-10329.96798858,0.0002399,2]
[394047097,1763229038532,-6470.74125859,0.00024349,2]
[394047099,1763229038542,-199.13245301,0.00024373,2]
[394047101,1763229038552,-189.0,0.00024449,2]
[394047103,1763229038562,-14399.42211327,0.00024449,2]
[394047105,1763229038572,-624.58578565,0.00024472,2]
[394047107,1763229038583,-382.29895771,0.00024472,2]
[394047109,1763229038592,-500.0,0.00024472,2]
[394047111,1763229038602,-649.55064316,0.00024472,2]
[394047113,1763229038611,-575.981764,0.00024472,2]
[394047115,1763229038621,-508.79392546,0.00024473,2]
[394047117,1763229038631,-1631.9176623,0.00024473,2]
[394047250,1763229040658,-321.09825936,0.00024473,2]
[394047266,1763229048930,379.874605,0.00013699,2]
[394047267,1763229154408,1734.49553372,0.00019996,2]
[394047269,1763229268359,-379.874605,0.00020187,2]
[394047270,1763229268399,-500.0,0.00022899,2]
[394047271,1763229268439,-153.754,0.00023983,5]
[394047272,1763229268478,-500.0,0.00024471,2]
[394047273,1763229268516,-5661.89860124,0.00024472,2]
[394047274,1763229268555,-500.0,0.00024473,2]
[394047275,1763229268593,-555.54208564,0.00024473,2]
[394047276,1763229268632,-888046.98407834,0.00024473,2]
[394047277,1763229273482,265853.45827248,0.00024373,2]
[394047279,1763229338718,-187.19,0.00024363,10]
[394047280,1763229338744,-155.99,0.00024363,10]
[394047281,1763229338768,-300.0,0.00024372,2]
[394047282,1763229338792,-300.0,0.00024372,2]
[394047283,1763229338821,-1200.0,0.00024372,2]
[394047284,1763229338848,-622003.36172752,0.00024373,2]
[394047324,1763229942134,-3800.58936993,0.0002267,10]
[394047325,1763229942154,-94.68814682,0.00022899,2]
[394048147,1763230239844,-359.99275684,0.00024373,2]
[394048175,1763230352860,-153.755,0.00024003,5]
[394048176,1763230352881,-5983.3322627,0.00024398,2]
[394048177,1763230352903,-2409.7060864,0.00024417,2]
[394048178,1763230352924,-300.0,0.00024451,2]
[394048179,1763230352947,-267.7537917,0.00024452,2]
[394048180,1763230352969,-7702.7938625,0.00024452,2]
[394048181,1763230352991,-162.7614233,0.00024452,2]
[394048182,1763230353022,-251.51848566,0.00024471,2]
[394048183,1763230353048,-500.0,0.00024471,2]
[394048184,1763230353071,-500.0,0.00024471,2]
[394048185,1763230353095,-779.96,0.00024483,10]
[394048186,1763230353123,-890000.0,0.00024493,2]
[394048187,1763230353147,-509.66796178,0.00024498,2]
[394048270,1763230501721,153.56,5e-05,2]
[394048271,1763230502045,153.56,5.2e-05,2]
[394048272,1763230502330,153.56,5.3e-05,2]
[394048274,1763230502644,153.56,5.5e-05,2]
[394048275,1763230502940,153.56,5.6e-05,2]
[394048277,1763230503225,153.56,5.8e-05,2]
[394048278,1763230503499,153.56,5.9e-05,2]
[394048279,1763230503885,153.56,6.1e-05,2]
[394048280,1763230504165,153.56,6.2e-05,2]
[394048281,1763230504476,153.56,6.4e-05,2]
[394048282,1763230504733,153.56,6.5e-05,2]
[394048283,1763230505685,153.56,6.7e-05,2]
[394048284,1763230505999,153.56,6.8e-05,2]
[394048285,1763230506272,153.56,7e-05,2]
[394048286,1763230506556,153.56,7.1e-05,2]
[394048287,1763230506837,153.56,7.3e-05,2]
[394048288,1763230507112,153.56,7.4e-05,2]
[394048289,1763230507428,153.56,7.6e-05,2]
[394048290,1763230507774,153.56,7.8e-05,2]
[394048291,1763230508191,153.56,7.9e-05,2]
[394048292,1763230508482,153.56,8.1e-05,2]
[394048294,1763230509015,153.56,8.2e-05,2]
[394048297,1763230509474,153.56,8.4e-05,2]
[394048298,1763230509762,153.56,8.5e-05,2]
[394048299,1763230510051,153.56,8.7e-05,2]
[394048300,1763230510336,153.56,8.8e-05,2]
[394048301,1763230510639,153.56,9e-05,2]
[394048302,1763230510976,153.56,9.1e-05,2]
[394048303,1763230511265,153.56,9.3e-05,2]
[394048304,1763230511611,153.56,9.4e-05,2]
[394048305,1763230511957,153.56,9.6e-05,2]
[394048306,1763230512247,153.56,9.7e-05,2]
[394048307,1763230512568,153.56,9.9e-05,2]
[394048308,1763230512920,153.56,0.000101,2]
[394048309,1763230513220,153.56,0.000102,2]
[394048310,1763230513492,153.56,0.000104,2]
[394048311,1763230513783,153.56,0.000105,2]
[394048312,1763230514960,153.56,0.000107,2]
[394048313,1763230515118,153.56,0.000108,2]
[394048314,1763230515528,153.56,0.00011,2]
[394048315,1763230515799,153.56,0.000111,2]
[394048316,1763230516071,153.56,0.000113,2]
[394048317,1763230516379,153.56,0.000114,2]
[394048318,1763230516656,153.56,0.000116,2]
[394048319,1763230516997,153.56,0.000117,2]
[394048320,1763230517275,153.56,0.000119,2]
[394048321,1763230517548,153.56,0.00012,2]
[394048322,1763230517823,153.56,0.000122,2]
[394048323,1763230518126,153.56,0.000123,2]
[394048344,1763230561637,151.85,5e-05,2]
[394048345,1763230561887,151.85,5.3e-05,2]
[394048346,1763230562172,151.85,5.6e-05,2]
[394048347,1763230562516,151.85,5.9e-05,2]
[394048348,1763230562877,151.85,6.2e-05,2]
[394048349,1763230563152,151.85,6.5e-05,2]
[394048350,1763230563444,151.85,6.8e-05,2]
[394048351,1763230563780,151.85,7.1e-05,2]
[394048352,1763230564108,151.85,7.4e-05,2]
[394048353,1763230564409,151.85,7.7e-05,2]
[394048354,1763230564694,151.85,8e-05,2]
[394048356,1763230565032,151.85,8.3e-05,2]
[394048357,1763230565308,151.85,8.6e-05,2]
[394048358,1763230565588,151.85,8.9e-05,2]
[394048360,1763230565860,151.85,9.2e-05,2]
[394048361,1763230566132,151.85,9.5e-05,2]
[394048363,1763230566472,151.85,9.8e-05,2]
[394048364,1763230566760,151.85,0.000101,2]
[394048366,1763230567048,151.85,0.000104,2]
[394048367,1763230567317,151.85,0.000107,2]
[394048368,1763230567612,151.85,0.00011,2]
[394048369,1763230567894,151.85,0.000113,2]
[394048370,1763230568229,151.85,0.000116,2]
[394048371,1763230568555,151.85,0.000119,2]
[394048372,1763230568919,151.85,0.000122,2]
[394048452,1763230681560,150.01,5e-05,2]
[394048454,1763230681837,150.01,5.3e-05,2]
[394048455,1763230682216,150.01,5.6e-05,2]
[394048456,1763230682547,150.01,5.9e-05,2]
[394048457,1763230682834,150.01,6.3e-05,2]
[394048458,1763230683152,150.01,6.6e-05,2]
[394048459,1763230683426,150.01,6.9e-05,2]
[394048460,1763230683767,150.01,7.2e-05,2]
[394048461,1763230684106,150.01,7.5e-05,2]
[394048462,1763230684387,150.01,7.8e-05,2]
[394048463,1763230684680,150.01,8.1e-05,2]
[394048466,1763230685610,150.01,8.4e-05,2]
[394048467,1763230685950,150.01,8.8e-05,2]
[394048468,1763230686260,150.01,9.1e-05,2]
[394048469,1763230686558,150.01,9.4e-05,2]
[394048471,1763230686838,150.01,9.7e-05,2]
[394048473,1763230687201,150.01,0.0001,2]
[394048474,1763230687511,150.01,0.000103,2]
[394048475,1763230687782,150.01,0.000106,2]
[394048476,1763230688052,150.01,0.000109,2]
[394048477,1763230688393,150.01,0.000113,2]
[394048478,1763230688640,150.01,0.000116,2]
[394048479,1763230688965,150.01,0.000119,2]
[394048480,1763230689285,150.01,0.000122,2]
[394048655,1763230792848,-1567.93203409,0.00021563,2]
[394048656,1763230792873,-150.0,0.00021781,2]
[394048657,1763230792895,-294.0,0.00022,2]
[394048658,1763230792917,-294.0,0.00022192,7]
[394048659,1763230792941,-294.0,0.00023014,7]
[394048661,1763230792963,-210.55054725,0.00023406,4]
[394048662,1763230792986,-300.0,0.00023989,2]
[394048663,1763230793009,-15463.748895,0.0002399,2]
[394048664,1763230793032,-1376.06671565,0.0002403,2]
[394048665,1763230793055,-294.0,0.00024164,7]
[394048666,1763230793079,-493.21125822,0.00024273,2]
[394048667,1763230793104,-50000.0,0.00024391,2]
[394048668,1763230793128,-553.6178936,0.00024445,2]
[394048669,1763230793152,-10316.8221978,0.00024445,2]
[394048670,1763230793177,-500.0,0.00024473,2]
[394048672,1763230793202,-500.0,0.00024473,2]
[394048673,1763230793228,-500.0,0.00024473,2]
[394048674,1763230793253,-500.0,0.00024473,2]
[394048675,1763230793280,-477.74577119,0.00024473,2]
[394048676,1763230793304,-505.38349467,0.00024473,2]
[394048677,1763230793331,-500.0,0.00024473,2]
[394048678,1763230793355,-521.83530755,0.00024473,2]
[394048679,1763230793379,-440.69947592,0.00024473,2]
[394048680,1763230793402,-488.71895993,0.00024473,2]
[394048682,1763230793426,-504.76898142,0.00024473,2]
[394048683,1763230793449,-501.50208513,0.00024473,2]
[394048684,1763230793473,-500.0,0.00024473,2]
[394048685,1763230793497,-587.62383257,0.00024473,2]
[394048686,1763230793520,-500.0,0.00024473,2]
[394048687,1763230793543,-500.0,0.00024473,2]
[394048688,1763230793567,-500.0,0.00024473,2]
[394048689,1763230793591,-180.40327857,0.00024473,2]
[394048690,1763230793617,-500.0,0.0002449,2]
[394048691,1763230793642,-500.0,0.0002449,2]
[394048692,1763230793668,-500.0,0.0002449,2]
[394048693,1763230793697,-500.0,0.0002449,2]
[394048694,1763230793722,-500.0,0.0002449,2]
[394048695,1763230793749,-500.0,0.0002449,2]
[394048696,1763230793774,-500.0,0.0002449,2]
[394048697,1763230793798,-505.4381957,0.0002449,2]
[394048698,1763230793825,-500.0,0.0002449,2]
[394048699,1763230793851,-500.0,0.0002449,2]
[394048700,1763230793879,-500.0,0.0002449,2]
[394048701,1763230793905,-500.0,0.0002449,2]
[394048702,1763230793931,-500.0,0.0002449,2]
[394048703,1763230793957,-500.0,0.0002449,2]
[394048704,1763230793989,-500.0,0.0002449,2]
[394048705,1763230794019,-500.0,0.0002449,2]
[394048706,1763230794044,-511.28381232,0.0002449,2]
[394048707,1763230794069,-500.0,0.0002449,2]
[394048708,1763230794093,-500.0,0.0002449,2]
[394048709,1763230794119,-500.0,0.0002449,2]
[394048710,1763230794144,-500.0,0.0002449,2]
[394048711,1763230794168,-500.0,0.0002449,2]
[394048712,1763230794193,-500.0,0.0002449,2]
[394048713,1763230794219,-500.0,0.0002449,2]
[394048714,1763230794242,-500.0,0.0002449,2]
[394048715,1763230794266,-500.0,0.0002449,2]
[394048716,1763230794294,-500.0,0.0002449,2]
[394048717,1763230794319,-500.0,0.0002449,2]
[394048718,1763230794341,-500.0,0.0002449,2]
[394048719,1763230794364,-500.0,0.0002449,2]
[394048720,1763230794389,-500.0,0.0002449,2]
[394048721,1763230794412,-500.0,0.0002449,2]
[394048722,1763230794434,-500.0,0.0002449,2]
[394048723,1763230794456,-500.0,0.0002449,2]
[394048724,1763230794481,-500.0,0.0002449,2]
[394048725,1763230794504,-178.88800488,0.0002449,2]
[394048726,1763230794528,-500.0,0.0002449,2]
[394048727,1763230794551,-500.0,0.0002449,2]
[394048728,1763230794573,-430.96633157,0.0002449,2]
[394048729,1763230794600,-500.0,0.0002449,2]
[394048730,1763230794625,-608.87784663,0.0002449,2]
[394048731,1763230794648,-500.0,0.0002449,2]
[394048732,1763230794672,-500.0,0.0002449,2]
[394048733,1763230794699,-500.0,0.0002449,2]
[394048734,1763230794723,-500.0,0.0002449,2]
[394048735,1763230794746,-500.0,0.0002449,2]
[394048736,1763230794772,-500.0,0.0002449,2]
[394048737,1763230794796,-500.0,0.0002449,2]
[394048738,1763230794820,-500.0,0.0002449,2]
[394048739,1763230794844,-500.0,0.0002449,2]
[394048740,1763230794870,-500.0,0.0002449,2]
[394048741,1763230794896,-500.0,0.0002449,2]
[394048742,1763230794921,-500.0,0.0002449,2]
[394048743,1763230794947,-500.0,0.0002449,2]
[394048744,1763230794972,-500.0,0.0002449,2]
[394048745,1763230794997,-500.0,0.0002449,2]
[394048747,1763230795023,-500.0,0.0002449,2]
[394048748,1763230795044,-500.0,0.0002449,2]
[394048749,1763230795065,-500.0,0.0002449,2]
[394048750,1763230795087,-271.66247101,0.0002449,2]
[394048751,1763230795114,-499.99999999,0.0002449,2]
[394048752,1763230795140,-500.0,0.0002449,2]
[394048753,1763230795165,-500.0,0.0002449,2]
[394048754,1763230795189,-500.0,0.0002449,2]
[394048755,1763230795215,-500.0,0.0002449,2]
[394048756,1763230795239,-500.0,0.0002449,2]
[394048757,1763230795264,-268.06791934,0.0002449,2]
[394048759,1763230795290,-500.0,0.0002449,2]
[394048760,1763230795314,-500.0,0.0002449,2]
[394048761,1763230795341,-500.0,0.0002449,2]
[394048762,1763230795369,-500.0,0.0002449,2]
[394048763,1763230795392,-500.0,0.0002449,2]
[394048764,1763230795415,-500.0,0.0002449,2]
[394048765,1763230795437,-378.69698413,0.0002449,2]
[394048766,1763230795461,-500.0,0.0002449,2]
[394048767,1763230795486,-500.0,0.0002449,2]
[394048768,1763230795508,-500.0,0.0002449,2]
[394048770,1763230795623,-500.0,0.0002449,2]
[394048771,1763230795647,-500.0,0.0002449,2]
[394048772,1763230795672,-500.0,0.0002449,2]
[394048773,1763230795695,-500.0,0.0002449,2]
[394048774,1763230795720,-500.0,0.0002449,2]
[394048775,1763230795743,-500.0,0.0002449,2]
[394048776,1763230795765,-500.0,0.0002449,2]
[394048777,1763230795792,-500.0,0.0002449,2]
[394048778,1763230795817,-500.0,0.0002449,2]
[394048779,1763230795842,-500.0,0.0002449,2]
[394048780,1763230795867,-500.0,0.0002449,2]
[394048782,1763230795892,-500.0,0.0002449,2]
[394048783,1763230795915,-500.0,0.0002449,2]
[394048784,1763230795941,-500.0,0.0002449,2]
[394048785,1763230795964,-500.0,0.0002449,2]
[394048786,1763230795990,-500.0,0.0002449,2]
[394048788,1763230796013,-500.0,0.0002449,2]
[394048789,1763230796037,-500.0,0.0002449,2]
[394048790,1763230796063,-500.0,0.0002449,2]
[394048791,1763230796086,-500.0,0.0002449,2]
[394048792,1763230796112,-500.0,0.0002449,2]
[394048793,1763230796135,-315.45228841,0.0002449,2]
[394048794,1763230796157,-500.0,0.0002449,2]
[394048795,1763230796182,-500.0,0.0002449,2]
[394048796,1763230796206,-500.0,0.0002449,2]
[394048797,1763230796228,-500.0,0.0002449,2]
[394048798,1763230796253,-500.0,0.0002449,2]
[394048800,1763230796280,-500.0,0.0002449,2]
[394048801,1763230796303,-500.0,0.0002449,2]
[394048802,1763230796326,-500.0,0.00024491,2]
[394048803,1763230796348,-500.0,0.00024492,2]
[394048804,1763230796373,-269.15583556,0.00024492,2]
[394048805,1763230796395,-316.76984458,0.00024492,2]
[394048806,1763230796417,-500.0,0.00024492,2]
[394048807,1763230796440,-604.38976742,0.00024492,2]
[394048808,1763230796460,-202.64,0.00024492,2]
[394048809,1763230796483,-854821.0799699,0.00024493,2]
[394048810,1763230796555,278.30495644,0.000189,2]
[394049161,1763230862900,233.29,5e-05,2]
[394049166,1763230863243,233.29,5.2e-05,2]
[394049168,1763230863554,233.29,5.3e-05,2]
[394049171,1763230863839,233.29,5.5e-05,2]
[394049177,1763230864122,233.29,5.6e-05,2]
[394049181,1763230864399,233.29,5.8e-05,2]
[394049185,1763230864683,233.29,5.9e-05,2]
[394049188,1763230864962,233.29,6.1e-05,2]
[394049192,1763230865244,233.29,6.2e-05,2]
[394049194,1763230865527,233.29,6.4e-05,2]
[394049196,1763230865819,233.29,6.5e-05,2]
[394049198,1763230866127,233.29,6.7e-05,2]
[394049200,1763230866452,233.29,6.8e-05,2]
[394049203,1763230866763,233.29,7e-05,2]
[394049206,1763230867066,233.29,7.1e-05,2]
[394049210,1763230867367,233.29,7.3e-05,2]
[394049212,1763230867658,233.29,7.4e-05,2]
[394049215,1763230867946,233.29,7.6e-05,2]
[394049217,1763230868252,233.29,7.8e-05,2]
[394049219,1763230868638,233.29,7.9e-05,2]
[394049222,1763230869023,233.29,8.1e-05,2]
[394049223,1763230869279,233.29,8.2e-05,2]
[394049224,1763230869688,233.29,8.4e-05,2]
[394049225,1763230869988,233.29,8.5e-05,2]
[394049226,1763230870269,233.29,8.7e-05,2]
[394049229,1763230871255,233.29,8.8e-05,2]
[394049230,1763230871647,233.29,9e-05,2]
[394049231,1763230871958,233.29,9.1e-05,2]
[394049232,1763230872237,233.29,9.3e-05,2]
[394049234,1763230872538,233.29,9.4e-05,2]
[394049237,1763230872816,233.29,9.6e-05,2]
[394049239,1763230873067,-4071.0507694,0.00021134,2]
[394049241,1763230873090,-153.57522009,0.00021347,2]
[394049242,1763230873113,-271.22627706,0.00023406,2]
[394049244,1763230873138,-1084.90510824,0.00023406,2]
[394049245,1763230873162,-300.0,0.00023988,2]
[394049246,1763230873186,-500.0,0.00023989,2]
[394049247,1763230873210,-368.3835876,0.00023989,2]
[394049248,1763230873236,-623.20864963,0.00023989,2]
[394049249,1763230873260,-612.36486804,0.00023989,2]
[394049250,1763230873287,-500.0,0.00023989,2]
[394049252,1763230873313,-297.65422277,0.00023989,2]
[394049253,1763230873338,-500.0,0.00023989,2]
[394049255,1763230873366,-500.0,0.00023989,2]
[394049256,1763230873390,-367.74036841,0.00023989,2]
[394049258,1763230873431,-500.0,0.00023989,2]
[394049259,1763230873465,-500.0,0.00023989,2]
[394049262,1763230873494,-426.80679193,0.00023989,2]
[394049263,1763230873656,-74083.352472,0.0002399,2]
[394049264,1763230873681,-503.04740363,0.00024473,2]
[394049266,1763230873703,-515.62232191,0.00024473,2]
[394049267,1763230873728,-500.0,0.00024473,2]
[394049268,1763230873751,-500.0,0.00024473,2]
[394049269,1763230873774,-500.0,0.00024473,2]
[394049271,1763230873800,-209.40437684,0.00024478,2]
[394049272,1763230873825,-35178.9200301,0.00024493,2]
[394049273,1763230873848,-1002.25877995,0.00024498,2]
[394049274,1763230873873,-188.40908489,0.00024499,2]
[394049275,1763230873898,-571.73889121,0.00024499,2]
[394049276,1763230873923,-296.56,0.000245,14]
[394049277,1763230873946,-3344.87,0.000245,7]
[394049279,1763230873968,-505.96645197,0.00024573,2]
[394049280,1763230873991,-509.26830409,0.00024573,2]
[394049281,1763230874013,-433.80988382,0.00024573,2]
[394049282,1763230874036,-500.0,0.00024578,2]
[394049283,1763230874059,-556.03,0.00024592,2]
[394049284,1763230874082,-556.03,0.00024592,2]
[394049285,1763230874109,-405.31185318,0.00024593,2]
[394049286,1763230874132,-500.0,0.00024598,2]
[394049287,1763230874154,-209.17247324,0.000248,2]
[394049288,1763230874177,-3096.03330394,0.00024833,2]
[394049290,1763230874201,-251.0,0.00024869,2]
[394049291,1763230874226,-235339.98297,0.000249,2]
[394049292,1763230874249,-168.0,0.00024932,7]
[394049293,1763230874273,-246.0,0.00024935,2]
[394049294,1763230874298,-168.0,0.00025,7]
[394049295,1763230874334,233.29,9.7e-05,2]
[394049296,1763230874368,233.29,9.9e-05,2]
[394049297,1763230874404,233.29,0.000101,2]
[394049299,1763230874445,233.29,0.000102,2]
[394049300,1763230874479,233.29,0.000104,2]
[394049301,1763230874510,205.84137098,0.0002459,2]
[394049302,1763230874541,233.29,0.000105,2]
[394049303,1763230874888,233.29,0.000107,2]
[394049304,1763230875193,233.29,0.000108,2]
[394049306,1763230875485,233.29,0.00011,2]